fUST/lending_fUST_20241226
["ID","MTS","AMOUNT","RATE_DAILY","PERIOD"]
[346707708,1735221037859,-500.0,0.00019197,2]
[346707711,1735221037868,-500.0,0.00019197,2]
[346707713,1735221037877,-500.0,0.00019197,2]
[346707714,1735221037887,-142.41403355,0.00019197,2]
[346707717,1735221037906,-357.58596645,0.00019197,2]
[346707718,1735221037916,-152.17903355,0.00019197,2]
[346707719,1735221037928,-252.15239808,0.00019197,2]
[346707737,1735221039963,-500.0,0.00019193,2]
[346707738,1735221039972,-500.0,0.00019195,2]
[346707739,1735221039982,-562.02369488,0.00019195,2]
[346707740,1735221039991,-530.82,0.00019195,2]
[346707741,1735221040000,-95.66856837,0.00019197,2]
[346707742,1735221040010,-500.0,0.00019197,2]
[346707743,1735221040019,-500.0,0.00019197,2]
[346707744,1735221040029,-500.0,0.00019197,2]
[346707746,1735221040038,-500.0,0.00019197,2]
[346707748,1735221040048,-500.0,0.00019197,2]
[346707750,1735221040057,-500.0,0.00019197,2]
[346707752,1735221040066,-500.0,0.00019197,2]
[346707753,1735221040075,-500.0,0.00019197,2]
[346707754,1735221040085,-548.94,0.00019197,2]
[346707755,1735221040094,-548.94,0.00019197,2]
[346707756,1735221040103,-1644.79,0.00019197,2]
[346707757,1735221040112,-500.0,0.00019197,2]
[346707758,1735221040121,-500.0,0.00019197,2]
[346707759,1735221040131,-500.0,0.00019197,2]
[346707760,1735221040140,-500.0,0.00019197,2]
[346707761,1735221040149,-500.0,0.00019197,2]
[346707762,1735221040159,-500.0,0.00019197,2]
[346707763,1735221040169,-500.0,0.00019197,2]
[346707764,1735221040179,-500.0,0.00019197,2]
[346707765,1735221040189,-500.0,0.00019198,2]
[346707766,1735221040199,-500.0,0.00019198,2]
[346707767,1735221040210,-500.0,0.00019198,2]
[346707768,1735221040222,-500.0,0.00019198,2]
[346707769,1735221040236,-500.0,0.00019198,2]
[346707770,1735221040250,-500.0,0.00019198,2]
[346707771,1735221040264,-500.0,0.00019198,2]
[346707772,1735221040275,-500.0,0.00019198,2]
[346707773,1735221040287,-500.0,0.00019198,2]
[346707774,1735221040300,-500.0,0.00019198,2]
[346707775,1735221040313,-500.0,0.00019198,2]
[346707776,1735221040325,-500.0,0.00019198,2]
[346707777,1735221040338,-500.0,0.00019198,2]
[346707778,1735221040352,-500.0,0.00019198,2]
[346707779,1735221040365,-501.49091669,0.00019198,2]
[346707780,1735221040379,-500.0,0.00019198,2]
[346707781,1735221040391,-500.0,0.00019198,2]
[346707782,1735221040403,-500.0,0.00019198,2]
[346707783,1735221040415,-500.0,0.00019198,2]
[346707784,1735221040428,-500.0,0.00019198,2]
[346707785,1735221040441,-500.0,0.00019198,2]
[346707786,1735221040453,-500.0,0.00019198,2]
[346707787,1735221040466,-501.27621066,0.00019198,2]
[346707788,1735221040476,-500.0,0.00019198,2]
[346707789,1735221040487,-500.0,0.00019198,2]
[346707790,1735221040499,-500.95572852,0.00019198,2]
[346707791,1735221040512,-267.14266445,0.00019198,2]
[346707792,1735221040526,-506.78221807,0.00019198,2]
[346707793,1735221040540,-500.0,0.00019198,2]
[346707794,1735221040552,-500.0,0.00019198,2]
[346707795,1735221040567,-500.7535264,0.00019198,2]
[346707796,1735221040580,-500.71598307,0.00019198,2]
[346707797,1735221040594,-500.0,0.00019198,2]
[346707798,1735221040605,-502.74411992,0.00019198,2]
[346707799,1735221040615,-548.94,0.00019198,2]
[346707800,1735221040626,-500.0,0.00019198,2]
[346707801,1735221040637,-500.0,0.00019198,2]
[346707802,1735221040649,-500.0,0.00019198,2]
[346707803,1735221040664,-500.0,0.00019198,2]
[346707804,1735221040677,-500.0,0.00019199,2]
[346707805,1735221040687,-545.32,0.00019199,2]
[346707806,1735221040700,-152.0,0.00019251,2]
[346707807,1735221040712,-158.64,0.000194,2]
[346707808,1735221040726,-608.191,0.0001942,2]
[346707809,1735221040737,-500.0,0.00019466,2]
[346707810,1735221040747,-570.58,0.00019466,2]
[346707811,1735221040758,-500.0,0.00019466,2]
[346707812,1735221040769,-500.0,0.00019466,2]
[346707813,1735221040780,-500.0,0.00019467,2]
[346707814,1735221040793,-500.0,0.00019467,2]
[346707815,1735221040805,-500.0,0.00019467,2]
[346707816,1735221040816,-500.0,0.00019467,2]
[346707817,1735221040827,-500.0,0.00019467,2]
[346707818,1735221040840,-500.0,0.00019467,2]
[346707819,1735221040851,-500.0,0.00019467,2]
[346707820,1735221040862,-2956.64,0.00019467,2]
[346707821,1735221040874,-456.47,0.00019467,2]
[346707822,1735221040886,-1179.33,0.00019467,2]
[346707823,1735221040899,-500.0,0.00019467,2]
[346707824,1735221040911,-500.0,0.00019467,2]
[346707825,1735221040923,-1470.31,0.00019467,2]
[346707826,1735221040935,-815.37,0.00019467,2]
[346707827,1735221040947,-573.05,0.00019467,2]
[346707828,1735221040958,-500.0,0.00019467,2]
[346707829,1735221040973,-152.62,0.00019468,2]
[346707830,1735221040983,-287.48,0.00019468,2]
[346707831,1735221040997,-500.0,0.00019468,2]
[346707832,1735221041008,-500.0,0.00019468,2]
[346707833,1735221041019,-290.67,0.00019468,2]
[346707834,1735221041030,-500.0,0.00019468,2]
[346707835,1735221041041,-500.0,0.00019468,2]
[346707836,1735221041053,-500.0,0.00019468,2]
[346707837,1735221041066,-500.0,0.00019468,2]
[346707838,1735221041079,-500.0,0.00019468,2]
[346707839,1735221041091,-500.0,0.00019468,2]
[346707840,1735221041103,-500.0,0.00019468,2]
[346707841,1735221041115,-429.59,0.00019468,2]
[346707842,1735221041124,-500.0,0.00019468,2]
[346707843,1735221041134,-697.4,0.00019468,2]
[346707844,1735221041143,-310.32957742,0.00019468,2]
[346707845,1735221041152,-500.0,0.00019468,2]
[346707846,1735221041162,-500.0,0.00019468,2]
[346707847,1735221041171,-9680.19,0.00019468,2]
[346707848,1735221041181,-314.65,0.00019468,2]
[346707849,1735221041190,-500.0,0.00019468,2]
[346707850,1735221041200,-500.0,0.00019468,2]
[346707851,1735221041210,-500.0,0.00019468,2]
[346707852,1735221041219,-500.0,0.00019468,2]
[346707853,1735221041229,-500.0,0.00019468,2]
[346707854,1735221041239,-500.0,0.00019468,2]
[346707855,1735221041248,-500.0,0.00019468,2]
[346707856,1735221041257,-548.94,0.00019468,2]
[346707857,1735221041400,-548.94,0.00019468,2]
[346707858,1735221041416,-500.0,0.00019468,2]
[346707859,1735221041426,-500.0,0.00019468,2]
[346707860,1735221041435,-1905.43,0.00019468,2]
[346707861,1735221041445,-500.0,0.00019468,2]
[346707862,1735221041454,-500.0,0.00019468,2]
[346707863,1735221041465,-500.0,0.00019468,2]
[346707864,1735221041474,-500.0,0.00019468,2]
[346707865,1735221041484,-500.0,0.00019468,2]
[346707866,1735221041493,-541.09,0.00019468,2]
[346707867,1735221041502,-500.0,0.00019468,2]
[346707868,1735221041513,-500.0,0.00019468,2]
[346707869,1735221041522,-500.0,0.00019468,2]
[346707870,1735221041531,-500.0,0.00019468,2]
[346707871,1735221041540,-500.0,0.00019468,2]
[346707872,1735221041550,-505.04148532,0.00019468,2]
[346707873,1735221041559,-500.0,0.00019468,2]
[346707874,1735221041568,-427.11041384,0.00019469,2]
[346707875,1735221041577,-172.17,0.00019469,2]
[346707876,1735221041586,-545.72,0.00019469,2]
[346707877,1735221041595,-242.47,0.00019469,2]
[346707878,1735221041605,-500.0,0.00019469,2]
[346707879,1735221041614,-500.0,0.00019469,2]
[346707880,1735221041623,-536.93,0.00019469,2]
[346707881,1735221041632,-500.0,0.00019469,2]
[346707882,1735221041641,-502.94,0.00019469,2]
[346707883,1735221041650,-500.0,0.00019469,2]
[346707884,1735221041659,-430.97,0.00019469,2]
[346707885,1735221041668,-350.98004303,0.00019469,2]
[346707886,1735221041677,-306.82954838,0.00019469,2]
[346707887,1735221041686,-500.0,0.00019469,2]
[346707888,1735221041695,-500.0,0.00019469,2]
[346707889,1735221041704,-246.89,0.00019469,2]
[346707890,1735221041714,-500.0,0.00019469,2]
[346707891,1735221041724,-500.0,0.00019469,2]
[346707892,1735221041732,-500.0,0.00019469,2]
[346707893,1735221041742,-500.0,0.00019469,2]
[346707894,1735221041751,-500.0,0.00019469,2]
[346707895,1735221041761,-500.0,0.00019469,2]
[346707896,1735221041770,-502.4998943,0.00019469,2]
[346707897,1735221041780,-500.0,0.00019469,2]
[346707898,1735221041789,-500.0,0.00019469,2]
[346707899,1735221041798,-500.0,0.00019469,2]
[346707900,1735221041807,-500.0,0.00019469,2]
[346707901,1735221041816,-183.64,0.00019469,2]
[346707902,1735221041825,-500.0,0.00019469,2]
[346707903,1735221041834,-500.0,0.00019469,2]
[346707904,1735221041843,-511.42525382,0.00019469,2]
[346707905,1735221041853,-500.0,0.00019469,2]
[346707906,1735221041862,-500.0,0.00019469,2]
[346707907,1735221041871,-500.0,0.00019469,2]
[346707908,1735221041880,-500.0,0.00019469,2]
[346707909,1735221041890,-500.0,0.00019469,2]
[346707910,1735221041899,-500.0,0.00019469,2]
[346707911,1735221041908,-500.0,0.00019469,2]
[346707912,1735221041920,-500.0,0.00019469,2]
[346707913,1735221041931,-500.0,0.00019469,2]
[346707914,1735221041940,-501.25993747,0.00019469,2]
[346707915,1735221041951,-500.0,0.00019469,2]
[346707916,1735221041963,-500.0,0.00019469,2]
[346707917,1735221041972,-250.07513285,0.00019469,2]
[346707918,1735221041981,-548.94,0.0001947,2]
[346707919,1735221041991,-500.77914922,0.00019471,2]
[346707920,1735221042000,-500.0,0.00019471,2]
[346707921,1735221042009,-500.0,0.00019471,2]
[346707922,1735221042018,-500.0,0.00019471,2]
[346707923,1735221042027,-280.45,0.00019471,2]
[346707924,1735221042036,-1644.79,0.00019471,2]
[346707925,1735221042045,-500.0,0.00019471,2]
[346707926,1735221042054,-500.0,0.00019471,2]
[346707927,1735221042063,-500.0,0.00019471,2]
[346707928,1735221042072,-500.0,0.00019472,2]
[346707929,1735221042081,-500.0,0.00019473,2]
[346707930,1735221042090,-179.20726082,0.00019473,2]
[346707931,1735221042100,-350.90119,0.000196,8]
[346707932,1735221042110,-153.0,0.00019616,2]
[346707933,1735221042119,-1200.0,0.00019651,2]
[346707934,1735221042129,-658.441,0.00019651,2]
[346707935,1735221042138,-230.576,0.00019651,2]
[346707936,1735221042147,-168.0,0.00019684,2]
[346707937,1735221042156,-242.5,0.00019694,2]
[346707938,1735221042165,-500.0,0.00019721,2]
[346707939,1735221042174,-1000.0,0.00019721,2]
[346707940,1735221042183,-1000.0,0.00019721,2]
[346707941,1735221042193,-994.99975034,0.00019721,2]
[346707942,1735221042207,-5.00024966,0.00019721,2]
[346707943,1735221042219,-1000.0,0.00019721,2]
[346707945,1735221042228,-249.49534821,0.00019721,2]
[346707947,1735221042237,-1000.0,0.00019721,2]
[346707948,1735221042246,-500.44056644,0.00019721,2]
[346707949,1735221042255,-1000.0,0.00019721,2]
[346707950,1735221042264,-1000.0,0.00019721,2]
[346707951,1735221042273,-875.06837574,0.00019721,2]
[346707952,1735221042282,-501.16777078,0.00019721,2]
[346707953,1735221042292,-500.0,0.0001974,2]
[346707955,1735221042301,-570.58,0.0001974,2]
[346707958,1735221042310,-500.0,0.0001974,2]
[346707960,1735221042319,-500.0,0.0001974,2]
[346707962,1735221042329,-537.71,0.00019741,2]
[346707963,1735221042338,-500.0,0.00019741,2]
[346707964,1735221042348,-500.0,0.00019741,2]
[346707965,1735221042358,-500.0,0.00019741,2]
[346707967,1735221042367,-500.0,0.00019741,2]
[346707969,1735221042376,-384.26,0.00019741,2]
[346707970,1735221042385,-2956.64,0.00019741,2]
[346707971,1735221042395,-548.94,0.00019741,2]
[346707972,1735221042405,-1179.33,0.00019741,2]
[346707974,1735221042414,-554.73927692,0.00019741,2]
[346707976,1735221042423,-1470.31,0.00019741,2]
[346707977,1735221042433,-815.37,0.00019741,2]
[346707978,1735221042443,-573.05,0.00019741,2]
[346707979,1735221042452,-500.0,0.00019741,2]
[346707980,1735221042463,-500.0,0.00019742,2]
[346707981,1735221042472,-500.0,0.00019742,2]
[346707982,1735221042482,-500.0,0.00019742,2]
[346707983,1735221042491,-500.0,0.00019742,2]
[346707984,1735221042500,-500.0,0.00019742,2]
[346707985,1735221042509,-500.0,0.00019742,2]
[346707986,1735221042519,-558.34,0.00019742,2]
[346707987,1735221042529,-500.0,0.00019742,2]
[346707988,1735221042538,-500.0,0.00019742,2]
[346707989,1735221042547,-452.21,0.00019742,2]
[346707990,1735221042556,-697.4,0.00019742,2]
[346707991,1735221042565,-500.0,0.00019742,2]
[346707992,1735221042574,-500.0,0.00019742,2]
[346707993,1735221042583,-9680.19,0.00019742,2]
[346707994,1735221042593,-500.0,0.00019742,2]
[346707995,1735221042605,-500.0,0.00019742,2]
[346707996,1735221042614,-500.0,0.00019742,2]
[346707997,1735221042624,-500.0,0.00019742,2]
[346707998,1735221042633,-500.0,0.00019742,2]
[346707999,1735221042642,-500.0,0.00019742,2]
[346708000,1735221042651,-500.0,0.00019742,2]
[346708001,1735221042661,-548.94,0.00019742,2]
[346708002,1735221042670,-500.0,0.00019742,2]
[346708003,1735221042680,-500.0,0.00019742,2]
[346708004,1735221042689,-1905.43,0.00019742,2]
[346708005,1735221042698,-500.0,0.00019742,2]
[346708006,1735221042707,-500.0,0.00019742,2]
[346708008,1735221042718,-500.0,0.00019742,2]
[346708009,1735221042727,-500.0,0.00019742,2]
[346708010,1735221042736,-500.0,0.00019742,2]
[346708011,1735221042747,-500.0,0.00019742,2]
[346708013,1735221042756,-500.0,0.00019742,2]
[346708014,1735221042765,-500.0,0.00019742,2]
[346708015,1735221042774,-500.0,0.00019742,2]
[346708016,1735221042783,-501.0814374,0.00019742,2]
[346708017,1735221042792,-500.0,0.00019742,2]
[346708018,1735221042802,-232.48,0.00019743,2]
[346708019,1735221042811,-171.92,0.00019743,2]
[346708021,1735221042820,-500.0,0.00019743,2]
[346708022,1735221042829,-500.0,0.00019743,2]
[346708023,1735221042838,-500.0,0.00019743,2]
[346708024,1735221042847,-500.0,0.00019743,2]
[346708025,1735221042856,-500.0,0.00019743,2]
[346708026,1735221042865,-500.0,0.00019743,2]
[346708027,1735221042874,-509.28,0.00019743,2]
[346708028,1735221042883,-500.0,0.00019743,2]
[346708029,1735221042892,-500.0,0.00019743,2]
[346708030,1735221042901,-500.0,0.00019743,2]
[346708031,1735221042913,-500.0,0.00019743,2]
[346708032,1735221042922,-177.77865758,0.00019743,2]
[346708033,1735221042931,-546.63633567,0.00019743,2]
[346708034,1735221042940,-500.0,0.00019743,2]
[346708035,1735221042950,-500.0,0.00019743,2]
[346708036,1735221042959,-548.94,0.00019744,2]
[346708037,1735221042970,-500.0,0.00019745,2]
[346708038,1735221042979,-1644.79,0.00019745,2]
[346708039,1735221042988,-500.0,0.00019745,2]
[346708040,1735221042997,-500.0,0.00019745,2]
[346708041,1735221043006,-500.0,0.00019745,2]
[346708042,1735221043015,-248.8,0.00019746,2]
[346708043,1735221043024,-1000.0,0.000198,2]
[346708044,1735221043034,-151.01,0.00019837,2]
[346708045,1735221043043,-151.0,0.00019861,2]
[346708046,1735221043052,-151.0,0.00019861,2]
[346708047,1735221043061,-752.4182144,0.0002,10]
[346708048,1735221043071,-61909.0,0.0002,2]
[346708050,1735221043080,-500.0,0.00020014,2]
[346708051,1735221043089,-570.58,0.00020014,2]
[346708052,1735221043098,-500.0,0.00020014,2]
[346708053,1735221043108,-409.64,0.00020014,2]
[346708054,1735221043118,-500.0,0.00020015,2]
[346708055,1735221043127,-500.0,0.00020015,2]
[346708056,1735221043136,-500.0,0.00020015,2]
[346708057,1735221043145,-500.0,0.00020015,2]
[346708058,1735221043154,-2956.64,0.00020015,2]
[346708059,1735221043164,-1179.33,0.00020015,2]
[346708060,1735221043173,-1470.31,0.00020015,2]
[346708061,1735221043183,-815.37,0.00020015,2]
[346708062,1735221043193,-573.05,0.00020015,2]
[346708063,1735221043202,-500.0,0.00020015,2]
[346708064,1735221043211,-500.0,0.00020016,2]
[346708065,1735221043221,-500.0,0.00020016,2]
[346708066,1735221043231,-500.0,0.00020016,2]
[346708067,1735221043240,-500.0,0.00020016,2]
[346708068,1735221043249,-505.05,0.00020016,2]
[346708069,1735221043259,-500.0,0.00020016,2]
[346708070,1735221043268,-500.0,0.00020016,2]
[346708071,1735221043277,-500.0,0.00020016,2]
[346708072,1735221043286,-697.4,0.00020016,2]
[346708073,1735221043295,-500.0,0.00020016,2]
[346708074,1735221043304,-500.0,0.00020016,2]
[346708075,1735221043313,-9680.19,0.00020016,2]
[346708076,1735221043323,-500.0,0.00020016,2]
[346708077,1735221043332,-500.0,0.00020016,2]
[346708078,1735221043341,-500.0,0.00020016,2]
[346708079,1735221043351,-500.0,0.00020016,2]
[346708080,1735221043360,-500.0,0.00020016,2]
[346708081,1735221043370,-500.0,0.00020016,2]
[346708082,1735221043379,-500.0,0.00020016,2]
[346708083,1735221043388,-548.94,0.00020016,2]
[346708085,1735221043398,-500.0,0.00020016,2]
[346708087,1735221043407,-500.0,0.00020016,2]
[346708089,1735221043417,-1905.43,0.00020016,2]
[346708091,1735221043426,-500.0,0.00020016,2]
[346708093,1735221043435,-500.0,0.00020016,2]
[346708095,1735221043445,-500.0,0.00020016,2]
[346708096,1735221043455,-500.0,0.00020016,2]
[346708097,1735221043465,-500.0,0.00020016,2]
[346708098,1735221043474,-500.0,0.00020016,2]
[346708099,1735221043483,-500.0,0.00020016,2]
[346708100,1735221043493,-500.0,0.00020016,2]
[346708101,1735221043503,-500.0,0.00020016,2]
[346708102,1735221043512,-500.0,0.00020016,2]
[346708103,1735221043522,-420.19,0.00020017,2]
[346708104,1735221043532,-336.64,0.00020017,2]
[346708105,1735221043541,-500.0,0.00020017,2]
[346708106,1735221043550,-500.0,0.00020017,2]
[346708107,1735221043559,-500.0,0.00020017,2]
[346708108,1735221043569,-500.0,0.00020017,2]
[346708109,1735221043578,-500.0,0.00020017,2]
[346708110,1735221043587,-584.24,0.00020017,2]
[346708111,1735221043596,-500.0,0.00020017,2]
[346708112,1735221043606,-500.0,0.00020017,2]
[346708113,1735221043615,-500.0,0.00020017,2]
[346708114,1735221043625,-548.94,0.00020018,2]
[346708115,1735221043634,-268.79,0.00020019,2]
[346708116,1735221043643,-1644.79,0.00020019,2]
[346708117,1735221043652,-385.68,0.00020019,2]
[346708118,1735221043662,-500.0,0.00020019,2]
[346708119,1735221043670,-1000.0,0.00020021,2]
[346708120,1735221043681,-151.0,0.00020027,2]
[346708121,1735221043690,-151.0,0.00020027,2]
[346708122,1735221043699,-151.0,0.00020027,2]
[346708123,1735221043708,-151.0,0.00020027,2]
[346708124,1735221043719,-151.0,0.00020027,2]
[346708125,1735221043728,-151.0,0.00020027,2]
[346708126,1735221043738,-151.0,0.00020027,2]
[346708127,1735221043747,-151.0,0.00020027,2]
[346708128,1735221043756,-151.0,0.00020027,2]
[346708129,1735221043766,-151.0,0.00020103,7]
[346708130,1735221043776,-1008.86,0.000202,7]
[346708131,1735221043785,-153.23,0.000202,31]
[346708132,1735221043795,-153.23,0.000202,31]
[346708133,1735221043804,-153.23,0.000202,31]
[346708134,1735221043813,-153.23,0.000202,31]
[346708135,1735221043822,-153.23,0.000202,31]
[346708136,1735221043831,-153.23,0.000202,31]
[346708137,1735221043840,-153.23,0.000202,31]
[346708138,1735221043850,-153.23,0.000202,31]
[346708139,1735221043859,-153.23,0.000202,31]
[346708140,1735221043869,-153.23,0.000202,31]
[346708141,1735221043878,-153.23,0.000202,31]
[346708142,1735221043978,-153.23,0.000202,31]
[346708143,1735221043989,-153.23,0.000202,31]
[346708144,1735221044000,-499.0,0.00020273,2]
[346708145,1735221044011,-457.34,0.00020288,2]
[346708146,1735221044021,-570.58,0.00020288,2]
[346708147,1735221044030,-500.0,0.00020288,2]
[346708148,1735221044039,-500.0,0.00020289,2]
[346708149,1735221044049,-266.18,0.00020289,2]
[346708150,1735221044058,-555.9,0.00020289,2]
[346708151,1735221044068,-320.25,0.00020289,2]
[346708152,1735221044077,-2956.64,0.00020289,2]
[346708153,1735221044087,-548.94,0.00020289,2]
[346708154,1735221044097,-1179.33,0.00020289,2]
[346708155,1735221044107,-1470.31,0.00020289,2]
[346708156,1735221044116,-815.37,0.00020289,2]
[346708157,1735221044125,-573.05,0.00020289,2]
[346708158,1735221044136,-183.81,0.00020289,2]
[346708159,1735221044146,-500.0,0.0002029,2]
[346708160,1735221044155,-500.0,0.0002029,2]
[346708161,1735221044164,-500.0,0.0002029,2]
[346708162,1735221044174,-500.0,0.0002029,2]
[346708163,1735221044183,-303.02,0.0002029,2]
[346708164,1735221044192,-500.0,0.0002029,2]
[346708165,1735221044201,-500.0,0.0002029,2]
[346708166,1735221044210,-697.4,0.0002029,2]
[346708167,1735221044220,-500.0,0.0002029,2]
[346708168,1735221044229,-500.0,0.0002029,2]
[346708169,1735221044238,-9680.19,0.0002029,2]
[346708170,1735221044248,-349.86,0.0002029,2]
[346708171,1735221044257,-500.0,0.0002029,2]
[346708172,1735221044266,-500.0,0.0002029,2]
[346708173,1735221044275,-500.0,0.0002029,2]
[346708174,1735221044285,-500.0,0.0002029,2]
[346708175,1735221044294,-500.0,0.0002029,2]
[346708176,1735221044303,-500.0,0.0002029,2]
[346708177,1735221044313,-548.94,0.0002029,2]
[346708178,1735221044322,-548.94,0.0002029,2]
[346708179,1735221044332,-548.94,0.0002029,2]
[346708180,1735221044341,-548.94,0.0002029,2]
[346708181,1735221044350,-548.98,0.0002029,2]
[346708182,1735221044361,-500.0,0.0002029,2]
[346708183,1735221044370,-500.0,0.0002029,2]
[346708184,1735221044379,-1905.43,0.0002029,2]
[346708185,1735221044388,-322.42,0.0002029,2]
[346708186,1735221044398,-208.8,0.0002029,2]
[346708187,1735221044407,-500.0,0.0002029,2]
[346708188,1735221044416,-500.0,0.0002029,2]
[346708189,1735221044426,-500.0,0.0002029,2]
[346708190,1735221044435,-500.0,0.0002029,2]
[346708191,1735221044445,-500.0,0.0002029,2]
[346708192,1735221044454,-500.0,0.0002029,2]
[346708193,1735221044464,-500.0,0.0002029,2]
[346708194,1735221044473,-500.0,0.0002029,2]
[346708195,1735221044483,-500.0,0.00020291,2]
[346708196,1735221044492,-500.0,0.00020291,2]
[346708197,1735221044502,-269.51,0.00020291,2]
[346708198,1735221044511,-500.0,0.00020291,2]
[346708199,1735221044521,-500.0,0.00020291,2]
[346708200,1735221044530,-500.0,0.00020291,2]
[346708201,1735221044540,-562.54,0.00020291,2]
[346708202,1735221044549,-1644.79,0.00020293,2]
[346708203,1735221044558,-500.0,0.00020293,2]
[346708204,1735221044568,-817.0,0.000203,2]
[346708205,1735221044577,-500.0,0.00020322,2]
[346708206,1735221044587,-500.0,0.00020323,2]
[346708207,1735221044596,-151.0,0.000204,3]
[346708208,1735221044606,-151.0,0.000204,4]
[346708209,1735221044615,-151.0,0.000204,3]
[346708210,1735221044624,-500.0,0.00020437,2]
[346708211,1735221044633,-150.17,0.00020437,2]
[346708212,1735221044643,-154.27875926,0.00020437,2]
[346708213,1735221044652,-150.17,0.00020437,2]
[346708214,1735221044661,-150.17,0.00020437,2]
[346708215,1735221044670,-500.0,0.00020437,2]
[346708216,1735221044680,-150.17,0.00020437,2]
[346708217,1735221044690,-500.0,0.00020437,2]
[346708218,1735221044699,-150.17,0.00020437,2]
[346708219,1735221044709,-150.17,0.00020437,2]
[346708220,1735221044721,-162.15,0.00020437,2]
[346708221,1735221044730,-400.0,0.00020447,2]
[346708222,1735221044740,-1000.0,0.00020458,9]
[346708223,1735221044749,-1000.0,0.00020458,2]
[346708224,1735221044759,-1000.0,0.00020458,10]
[346708225,1735221044768,-151.3789105,0.00020458,2]
[346708226,1735221044778,-151.0,0.0002046,2]
[346708227,1735221044788,-151.0,0.0002046,2]
[346708228,1735221044797,-151.0,0.0002046,2]
[346708229,1735221044807,-151.0,0.0002046,2]
[346708230,1735221044816,-151.0,0.0002046,2]
[346708231,1735221044825,-151.0,0.0002046,2]
[346708232,1735221044835,-151.0,0.0002046,2]
[346708233,1735221044844,-151.0,0.0002046,2]
[346708234,1735221044853,-151.0,0.0002046,2]
[346708235,1735221044862,-151.0,0.0002046,2]
[346708236,1735221044871,-151.0,0.0002046,2]
[346708237,1735221044880,-151.0,0.0002046,2]
[346708238,1735221044890,-151.0,0.0002046,2]
[346708239,1735221044898,-151.0,0.0002046,2]
[346708240,1735221044908,-151.0,0.0002046,2]
[346708241,1735221044920,-151.0,0.0002046,2]
[346708242,1735221044934,-151.0,0.0002046,2]
[346708243,1735221044943,-151.0,0.0002046,2]
[346708244,1735221044952,-155.84383,0.0002046,2]
[346708245,1735221044961,-151.0,0.0002046,2]
[346708246,1735221044971,-170.354138,0.0002046,2]
[346708247,1735221044980,-170.354138,0.0002046,2]
[346708248,1735221044989,-170.354138,0.0002046,2]
[346708249,1735221044998,-170.354138,0.0002046,2]
[346708250,1735221045008,-170.354138,0.0002046,2]
[346708251,1735221045017,-170.354138,0.0002046,2]
[346708252,1735221045027,-170.354138,0.0002046,2]
[346708253,1735221045036,-170.354138,0.0002046,2]
[346708254,1735221045045,-170.354138,0.0002046,2]